bitfinex/quotes_BTCUSD_20250118
["timestamp","ask_amount","ask_price","bid_price","bid_amount"]
[1737208666857,0.16827661,104230.0,104220.0,0.09971403]
[1737208667061,0.26421761,104230.0,104220.0,0.09971403]
[1737208667303,0.26421761,104230.0,104210.0,0.48681884]
[1737208667505,0.45610161,104230.0,104210.0,0.48681884]
[1737208668117,0.45610161,104230.0,104210.0,0.67873684]
[1737208668118,0.45652831,104230.0,104210.0,0.67873684]
[1737208669106,0.26464431,104230.0,104220.0,0.19566403]
[1737208669345,0.26464431,104230.0,104220.0,0.09971403]
[1737208669553,0.36059631,104230.0,104210.0,0.19566703]
[1737208669753,0.15972583,104220.0,104210.0,0.38758503]
[1737208670337,0.16430743,104220.0,104210.0,0.38758503]
[1737208671520,0.0045816,104220.0,104210.0,0.48682584]
[1737208671722,0.16430743,104220.0,104210.0,0.48682584]
[1737208672535,0.0045816,104220.0,104210.0,0.48682584]
[1737208673002,0.16870331,104230.0,104220.0,0.09971403]
[1737208673212,0.16870331,104230.0,104220.0,0.19566403]
[1737208675025,0.00897748,104230.0,104220.0,0.19566403]
[1737208675423,0.10491848,104230.0,104220.0,0.09971403]
[1737208675623,0.26464431,104230.0,104220.0,0.09971403]
[1737208676607,0.26464431,104230.0,104220.0,0.19566403]
[1737208676960,0.00897748,104230.0,104220.0,0.29895484]
[1737208677165,0.00897748,104230.0,104220.0,0.44490484]
[1737208678740,0.00897748,104230.0,104220.0,0.29490484]
[1737208679235,0.00897748,104230.0,104220.0,0.39490484]
[1737208679569,0.00897748,104230.0,104220.0,0.29490484]
[1737208679992,0.00897748,104230.0,104220.0,0.3132141]
[1737208680194,0.00897748,104230.0,104220.0,0.3362141]
[1737208680665,0.00897748,104230.0,104220.0,0.5862141]
[1737208680896,0.00897748,104230.0,104220.0,0.4862141]
[1737208686347,0.00897748,104230.0,104220.0,0.5862141]
[1737208686587,0.00897748,104230.0,104220.0,0.4862141]
[1737208688028,0.00497748,104230.0,104220.0,0.4862141]
[1737208688929,0.00497748,104230.0,104220.0,0.51555332]
[1737208689145,0.0123439,104240.0,104230.0,0.36865503]
[1737208689354,0.0123439,104240.0,104230.0,0.46789584]
[1737208689959,0.11833713,104240.0,104230.0,0.09924081]
[1737208690187,0.31021213,104240.0,104220.0,0.40585529]
[1737208690334,0.09006037,104230.0,104220.0,0.2172641]
[1737208690541,0.1960536,104230.0,104220.0,0.19895484]
[1737208690759,0.1960536,104230.0,104210.0,0.38846668]
[1737208690939,0.10599323,104220.0,104210.0,0.51720147]
[1737208691362,0.15911732,104220.0,104210.0,0.51720147]
[1737208691948,0.15911732,104220.0,104210.0,0.48785827]
[1737208692097,0.15911732,104220.0,104210.0,0.51720092]
[1737208692302,0.15911732,104230.0,104210.0,0.67976427]
[1737208692521,0.15911732,104230.0,104220.0,0.09595]
[1737208693168,0.15911732,104230.0,104210.0,0.69807504]
[1737208693373,0.15911732,104230.0,104220.0,0.09595]
[1737208693738,0.15911732,104230.0,104220.0,0.38756503]
[1737208694488,0.0127704,104240.0,104230.0,0.095941]
[1737208694685,0.17188772,104240.0,104230.0,0.095941]
[1737208695243,0.17188772,104240.0,104230.0,0.39489584]
[1737208695244,0.0127704,104240.0,104230.0,0.39489584]
[1737208695411,0.0127704,104240.0,104230.0,0.29489584]
[1737208696259,0.0127704,104240.0,104230.0,0.41320561]
[1737208696469,0.0127704,104240.0,104230.0,0.46320561]
[1737208696668,0.0127704,104240.0,104230.0,0.56320561]
[1737208696872,0.0127704,104240.0,104230.0,0.46320561]
[1737208697446,0.0127704,104240.0,104230.0,0.48620561]
[1737208698184,0.0127704,104240.0,104230.0,0.46320561]
[1737208699311,0.0127704,104240.0,104230.0,0.56320561]
[1737208699508,0.0127704,104240.0,104230.0,0.46320561]
[1737208700325,0.0127704,104240.0,104230.0,0.50320561]
[1737208701301,0.0127704,104240.0,104230.0,0.62620561]
[1737208701515,0.0127704,104240.0,104230.0,0.38368561]
[1737208701719,0.0127704,104240.0,104230.0,0.36068561]
[1737208701918,0.0127704,104240.0,104230.0,0.26097158]
[1737208701919,0.17188772,104240.0,104230.0,0.26097158]
[1737208702053,0.0127704,104240.0,104230.0,0.36068561]
[1737208702599,0.17188772,104240.0,104230.0,0.36068561]
[1737208702822,0.17188772,104240.0,104230.0,0.16173077]
[1737208703243,0.26781972,104240.0,104230.0,0.06578977]
[1737208703529,0.17188772,104240.0,104230.0,0.16173077]
[1737208704156,0.17188772,104240.0,104230.0,0.09398148]
[1737208704350,0.17188772,104240.0,104230.0,0.18992248]
[1737208704556,0.17188772,104240.0,104230.0,0.09398148]
[1737208705144,0.26781972,104240.0,104230.0,0.09487692]
[1737208705321,0.50773704,104240.0,104230.0,0.09487692]
[1737208705534,0.34861972,104240.0,104230.0,0.09487692]
[1737208705735,0.44861972,104240.0,104230.0,0.09487692]
[1737208705942,0.34861972,104240.0,104230.0,0.09487692]
[1737208706160,0.44861972,104240.0,104230.0,2.09487692]
[1737208706375,0.60773704,104240.0,104230.0,2.09487692]
[1737208706585,0.60773704,104240.0,104230.0,2.06668521]
[1737208707242,0.61376634,104240.0,104230.0,2.06668521]
[1737208707453,0.2955317,104240.0,104230.0,2.06668521]
[1737208708283,0.2955317,104240.0,104230.0,2.05541766]
[1737208709141,0.61376634,104240.0,104230.0,2.05541766]
[1737208709722,0.61405231,104240.0,104230.0,2.05541766]
[1737208710115,0.60802301,104240.0,104230.0,2.05541766]
[1737208710338,0.60802301,104240.0,104230.0,2.04837544]
[1737208713327,0.3958831,104240.0,104230.0,2.04837544]
[1737208716675,0.50121864,104240.0,104230.0,2.04837544]
[1737208717998,0.50093267,104240.0,104230.0,2.04837544]
[1737208718397,0.65093267,104240.0,104230.0,2.04837544]
[1737208718603,1.13181654,104240.0,104230.0,2.04837544]
[1737208719819,1.26548813,104240.0,104230.0,2.04837544]
[1737208720792,1.18694064,104240.0,104230.0,1.97027544]
[1737208721507,1.18694064,104240.0,104230.0,1.84217544]
[1737208722296,1.01659159,104240.0,104230.0,1.65937723]
[1737208722415,1.25319159,104240.0,104230.0,1.48952176]
[1737208722630,1.25319159,104240.0,104230.0,0.99656507]
[1737208722834,1.25319159,104240.0,104230.0,0.89723786]
[1737208723034,1.23019159,104240.0,104230.0,0.85922986]
[1737208723313,1.23019159,104240.0,104230.0,0.83982049]
[1737208723467,0.97529348,104240.0,104230.0,0.83982049]
[1737208724294,0.96937348,104240.0,104230.0,0.83982049]
[1737208724654,0.97529348,104240.0,104230.0,0.83982049]
[1737208724829,1.49132518,104240.0,104230.0,0.83982049]
[1737208725055,1.49132518,104240.0,104230.0,0.8115019]
[1737208725402,1.49132518,104240.0,104230.0,0.74627369]
[1737208725603,1.49132518,104240.0,104230.0,0.68469475]
[1737208726018,1.27631197,104240.0,104230.0,0.68469475]
[1737208726991,1.29931197,104240.0,104230.0,0.68469475]
[1737208729137,1.29931197,104240.0,104230.0,0.66530397]
[1737208729352,1.29931197,104240.0,104230.0,0.60512571]
[1737208729552,1.17707116,104240.0,104230.0,0.60512571]
[1737208729684,1.17707116,104240.0,104230.0,0.60602472]
[1737208730488,1.26296025,104240.0,104230.0,0.60602472]
[1737208730827,0.36585845,104240.0,104230.0,0.85116553]
[1737208730974,0.07741455,104260.0,104250.0,0.17551403]
[1737208731168,0.21821763,104280.0,104270.0,0.37691803]
[1737208731443,0.18691763,104280.0,104270.0,0.6435016]
[1737208731876,0.25761289,104280.0,104270.0,0.9777733]
[1737208732028,0.23843389,104280.0,104270.0,0.9777733]
[1737208732228,0.00050243,104280.0,104270.0,0.9777733]
[1737208732428,0.00050243,104280.0,104270.0,0.87167857]
[1737208732656,0.00050243,104280.0,104270.0,0.8911248]
[1737208733060,0.00050243,104280.0,104270.0,1.00413442]
[1737208733261,4.3e-07,104290.0,104280.0,0.29560903]
[1737208733435,0.00015103,104290.0,104280.0,0.7123676]
[1737208733642,0.00015103,104290.0,104280.0,0.7182876]
[1737208734208,0.03550103,104310.0,104300.0,0.095877]
[1737208734350,0.03550103,104310.0,104300.0,0.35483526]
[1737208734558,0.03550103,104310.0,104300.0,0.62659072]
[1737208735182,0.03550103,104310.0,104300.0,0.44483184]
[1737208735397,0.03550103,104310.0,104300.0,0.60359072]
[1737208735795,0.03550103,104310.0,104300.0,0.62659072]
[1737208735975,0.03550103,104310.0,104300.0,0.72659072]
[1737208736186,0.03550103,104310.0,104300.0,0.77074526]
[1737208737351,0.03550103,104310.0,104300.0,0.85450213]
[1737208738084,0.03550103,104310.0,104300.0,1.47596584]
[1737208738283,0.00965344,104320.0,104310.0,0.50434091]
[1737208738415,0.00965344,104320.0,104310.0,0.62658172]
[1737208739839,0.00965344,104320.0,104310.0,0.67073626]
[1737208740077,0.00965344,104320.0,104310.0,0.62658172]
[1737208740289,0.00965344,104320.0,104310.0,0.44482284]
[1737208740440,0.00965344,104320.0,104310.0,0.29482284]
[1737208741405,0.01008154,104320.0,104310.0,0.29482284]
[1737208743353,0.01008154,104320.0,104310.0,0.45358172]
[1737208743488,0.01008154,104320.0,104310.0,0.45950172]
[1737208743695,0.01008154,104320.0,104310.0,0.45358172]
[1737208743944,0.01008154,104320.0,104310.0,0.29482284]
[1737208744922,0.0016527,104330.0,104310.0,0.29482284]
[1737208745124,0.00180322,104330.0,104310.0,0.67828584]
[1737208745525,0.1299,104320.0,104310.0,0.29482284]
[1737208746128,0.1299,104320.0,104310.0,0.09924081]
[1737208746684,0.1299,104320.0,104300.0,0.57906403]
[1737208746878,0.1299,104320.0,104300.0,0.67830484]
[1737208747390,0.1299,104320.0,104300.0,0.48656384]
[1737208747973,0.1299,104320.0,104300.0,0.29482484]
[1737208748373,0.57623688,104320.0,104290.0,0.19559303]
[1737208748572,0.28865888,104320.0,104290.0,0.29483384]
[1737208748914,0.48451888,104320.0,104290.0,0.67836084]
[1737208749148,0.38865888,104320.0,104290.0,0.67836084]
[1737208749347,0.1,104320.0,104290.0,0.67836084]
[1737208749744,0.1,104320.0,104290.0,0.87012284]
[1737208750048,0.1,104320.0,104300.0,0.095877]
[1737208750464,0.1,104320.0,104290.0,0.67835984]
[1737208750663,0.195859,104320.0,104290.0,0.67835984]
[1737208750960,0.35461788,104320.0,104290.0,0.48660884]
[1737208751122,0.195859,104320.0,104290.0,0.48660884]
[1737208751646,0.1,104320.0,104290.0,0.48660084]
[1737208751814,0.195859,104320.0,104290.0,0.67836484]
[1737208752020,0.19765322,104330.0,104300.0,0.48656784]
[1737208752224,0.22755322,104330.0,104300.0,0.67831284]
[1737208752519,0.1,104320.0,104300.0,0.19511181]
[1737208752717,0.1,104320.0,104290.0,0.77087503]
[1737208752956,0.1,104320.0,104290.0,0.67835284]
[1737208753157,0.19586,104320.0,104290.0,0.67835284]
[1737208753361,0.19586,104320.0,104290.0,0.48659184]
[1737208753561,0.54633688,104320.0,104290.0,0.29483284]
[1737208753739,0.579306,104320.0,104290.0,0.48660384]
[1737208753946,0.387578,104320.0,104290.0,0.48660384]
[1737208754273,0.195859,104320.0,104290.0,0.67927422]
[1737208754521,0.3880058,104320.0,104290.0,0.48750222]
[1737208754674,0.5797318,104320.0,104290.0,0.48750222]
[1737208754872,0.83773149,104320.0,104290.0,0.29573122]
[1737208755070,0.83773149,104320.0,104290.0,0.00089838]
[1737208755071,0.44636488,104310.0,104290.0,0.00089838]
[1737208755240,0.479351,104310.0,104290.0,0.00089838]
[1737208755445,0.287606,104310.0,104290.0,0.00089838]
[1737208755666,0.47935,104310.0,104290.0,0.00089838]
[1737208755887,0.48614477,104320.0,104290.0,0.28855038]
[1737208756089,0.25463588,104300.0,104290.0,0.00089838]
[1737208756288,0.095877,104300.0,104290.0,0.00089838]
[1737208756796,0.387609,104310.0,104290.0,0.00089838]
[1737208757037,0.195873,104310.0,104290.0,0.00089838]
[1737208757404,0.287609,104310.0,104290.0,0.00089838]
[1737208757600,0.387609,104310.0,104290.0,0.00089838]
[1737208758008,0.195873,104310.0,104290.0,0.00089838]
[1737208758210,0.195873,104310.0,104280.0,0.57918003]
[1737208758211,0.195873,104310.0,104280.0,0.77065417]
[1737208758412,0.195873,104310.0,104280.0,0.67810498]
[1737208758623,0.195873,104310.0,104280.0,0.86988498]
[1737208758990,0.195873,104310.0,104280.0,0.67810198]
[1737208759196,0.1,104310.0,104290.0,0.095885]
[1737208759411,0.1,104310.0,104280.0,0.67840284]
[1737208759412,0.195868,104310.0,104280.0,0.67840284]
[1737208759860,0.095868,104310.0,104280.0,0.67840284]
[1737208760270,0.195868,104310.0,104280.0,0.87018584]
[1737208760499,0.195868,104310.0,104280.0,0.48662284]
[1737208760685,0.387605,104310.0,104280.0,0.48662284]
[1737208761036,0.02325022,104300.0,104280.0,0.48662284]
[1737208761255,0.02325022,104300.0,104280.0,0.67841384]
[1737208761693,0.27041183,104310.0,104280.0,0.67841384]
[1737208761906,0.36628383,104310.0,104280.0,0.67841384]
[1737208762820,0.55802683,104310.0,104280.0,0.67841384]
[1737208763291,0.55802683,104310.0,104290.0,0.00152]
[1737208764131,0.55802783,104310.0,104290.0,0.00152]
[1737208764401,0.36628383,104310.0,104290.0,0.00152]
[1737208764926,0.0004278,104320.0,104300.0,0.38685381]
[1737208765048,0.2880128,104320.0,104300.0,0.09924081]
[1737208765250,0.0962908,104320.0,104290.0,0.289161]
[1737208765475,0.44677668,104320.0,104290.0,0.48811584]
[1737208765680,0.287606,104310.0,104290.0,0.10076081]
[1737208765886,0.70667324,104320.0,104290.0,0.38841681]
[1737208766085,0.73964536,104320.0,104290.0,0.38841681]
[1737208766308,0.095868,104310.0,104290.0,0.38841681]
[1737208766887,0.287604,104310.0,104290.0,0.38841681]
[1737208767095,0.095868,104310.0,104290.0,0.38841681]
[1737208767310,0.67176777,104320.0,104290.0,0.38841681]
[1737208767699,0.095868,104310.0,104290.0,0.38841681]
[1737208768246,0.287604,104310.0,104290.0,0.38841681]
[1737208768442,0.287604,104310.0,104290.0,0.19664481]
[1737208768735,0.287604,104310.0,104290.0,0.38841681]
[1737208768934,0.479348,104310.0,104290.0,0.10076081]
[1737208769138,0.287607,104310.0,104290.0,0.19664481]
[1737208769345,0.287607,104310.0,104290.0,0.38841581]
[1737208770167,0.287607,104310.0,104290.0,0.38841681]
[1737208770825,0.095868,104310.0,104290.0,0.38841681]
[1737208771589,0.287604,104310.0,104290.0,0.38841681]
[1737208772086,0.095868,104310.0,104290.0,0.58018881]
[1737208772806,0.287604,104310.0,104290.0,0.38841681]
[1737208773209,0.01433339,104300.0,104290.0,0.58018881]
[1737208773407,0.01433339,104300.0,104290.0,0.38841681]
[1737208775233,0.095868,104310.0,104290.0,0.58018181]
[1737208776104,0.68593912,104320.0,104290.0,0.58018181]
[1737208776282,0.87767012,104320.0,104290.0,0.47216668]
[1737208776485,0.0089655,104300.0,104290.0,0.90819976]
[1737208776903,0.68593912,104320.0,104290.0,1.09996276]
[1737208777346,0.2880198,104320.0,104300.0,0.095874]
[1737208777679,0.39392315,104320.0,104300.0,0.095874]
[1737208778062,0.39392315,104320.0,104290.0,1.26812641]
[1737208778063,0.58564915,104320.0,104290.0,1.26812641]
[1737208778468,0.01435052,104310.0,104290.0,1.26812641]
[1737208779104,0.01435052,104310.0,104300.0,0.37844797]
[1737208779749,0.58564915,104320.0,104300.0,0.37844797]
[1737208780122,0.58564915,104320.0,104300.0,0.68851629]
[1737208780123,0.77738015,104320.0,104300.0,0.68851629]
[1737208780622,0.58564915,104320.0,104300.0,0.68851629]
[1737208780958,0.77737815,104320.0,104300.0,0.68851629]
[1737208781161,0.0004278,104320.0,104310.0,0.19895484]
[1737208781360,0.0004278,104320.0,104310.0,0.19510881]
[1737208781569,0.0004278,104320.0,104300.0,0.78956199]
[1737208781710,0.0004278,104320.0,104310.0,0.095868]
[1737208782122,0.0962878,104320.0,104300.0,0.59734677]
[1737208782327,0.2880048,104320.0,104300.0,0.59735477]
[1737208782564,0.2880048,104320.0,104310.0,0.08419798]
[1737208782769,0.39390815,104320.0,104310.0,0.08419798]
[1737208782972,0.2880048,104320.0,104310.0,0.08419798]
[1737208783327,0.2880048,104320.0,104300.0,0.61643928]
[1737208783572,0.58563615,104320.0,104300.0,0.61643928]
[1737208783768,0.4797328,104320.0,104300.0,0.52056328]
[1737208783975,0.4797328,104320.0,104300.0,0.61643928]
[1737208784178,0.4797338,104320.0,104300.0,0.61643928]
[1737208784568,0.6714628,104320.0,104300.0,0.61643928]
[1737208784750,0.4797338,104320.0,104300.0,0.30637096]
[1737208785096,0.4797338,104320.0,104300.0,0.095876]
[1737208786071,0.4797338,104320.0,104300.0,0.28763]
[1737208787279,0.2880048,104320.0,104300.0,0.28763]
[1737208787898,0.4797328,104320.0,104300.0,0.28763]
[1737208791499,0.6714608,104320.0,104300.0,0.28763]
[1737208791856,0.4797328,104320.0,104300.0,0.28763]
[1737208792404,0.6714608,104320.0,104300.0,0.28763]
[1737208792605,0.4797328,104320.0,104300.0,0.28763]
[1737208794236,0.4797328,104320.0,104300.0,0.479384]
[1737208794438,0.4797328,104320.0,104300.0,0.28763]
[1737208795599,0.4797328,104320.0,104300.0,0.37182798]
[1737208797059,0.4797298,104320.0,104300.0,0.37182798]
[1737208798058,0.4797298,104320.0,104300.0,0.56358198]
[1737208798285,0.4797298,104320.0,104300.0,0.37182798]
[1737208798623,0.4797298,104320.0,104300.0,0.56358198]
[1737208798836,0.095868,104310.0,104300.0,0.08419798]
[1737208799036,0.6714698,104320.0,104300.0,0.18007498]
[1737208799289,0.00897822,104310.0,104300.0,0.37182898]
[1737208800086,0.00897822,104310.0,104300.0,0.287631]
[1737208800690,0.2880108,104320.0,104300.0,0.287631]
[1737208800945,0.6714688,104320.0,104300.0,0.287631]
[1737208801194,0.4797398,104320.0,104300.0,0.287631]
[1737208801388,0.4797398,104320.0,104300.0,0.37182898]
[1737208801566,0.2880108,104320.0,104300.0,0.56358298]
[1737208801766,0.4797348,104320.0,104300.0,0.56358298]
[1737208802175,0.2880108,104320.0,104300.0,0.56358298]
[1737208802313,0.2880108,104320.0,104300.0,0.37272736]
[1737208802514,0.4797398,104320.0,104300.0,0.37272736]
[1737208802953,0.0004278,104320.0,104310.0,0.095868]
[1737208803367,0.0004278,104320.0,104310.0,0.40168478]
[1737208803549,0.0004278,104320.0,104310.0,0.40072619]
[1737208804120,0.0004278,104320.0,104310.0,0.19510881]
[1737208804328,0.0004278,104320.0,104300.0,0.66416339]
[1737208804329,0.2880048,104320.0,104300.0,0.66416339]
[1737208804447,0.095868,104310.0,104300.0,0.10013919]
[1737208804657,0.3692128,104320.0,104300.0,0.38776919]
[1737208804859,0.5609428,104320.0,104300.0,0.38776919]
[1737208805282,0.7526728,104320.0,104300.0,0.38776219]
[1737208805471,0.095868,104310.0,104300.0,0.00089838]
[1737208805674,0.095868,104310.0,104300.0,0.09677538]
[1737208805953,0.095868,104310.0,104300.0,0.00089838]
[1737208806512,0.4168058,104320.0,104300.0,0.20604254]
[1737208806714,0.0962858,104320.0,104310.0,0.095868]
[1737208807078,0.0004278,104320.0,104310.0,0.095868]
[1737208807278,0.2880098,104320.0,104300.0,0.57949919]
[1737208807865,0.4797308,104320.0,104300.0,0.38775319]
[1737208808000,0.2880098,104320.0,104300.0,0.57949919]
[1737208808428,0.095868,104310.0,104300.0,0.09676738]
[1737208808641,0.095868,104310.0,104300.0,0.00089838]
[1737208809042,0.177068,104310.0,104300.0,0.00089838]
[1737208809261,0.0812,104310.0,104300.0,0.09677538]
[1737208810143,0.0812,104310.0,104300.0,0.6193955]
[1737208810475,0.0812,104310.0,104300.0,0.6693955]
[1737208811798,0.177068,104310.0,104300.0,0.6693955]
[1737208812008,0.0812,104310.0,104300.0,0.6693955]
[1737208812305,0.177068,104310.0,104300.0,0.6693955]
[1737208812729,0.177068,104310.0,104300.0,0.5735185]
[1737208812933,0.177068,104310.0,104300.0,0.6693955]
[1737208813342,0.0812,104310.0,104300.0,0.6693955]
[1737208813721,0.177068,104310.0,104300.0,0.6693955]
[1737208814061,0.43009813,104310.0,104300.0,0.5735185]
[1737208814220,0.43009813,104310.0,104300.0,0.2619248]
[1737208814419,0.43052593,104310.0,104300.0,0.2619248]
[1737208815249,0.80825429,104310.0,104300.0,0.2619248]
[1737208815449,0.71413429,104310.0,104300.0,0.05089838]
[1737208815657,0.71413429,104310.0,104300.0,0.00089838]
[1737208815869,0.324377,104300.0,104290.0,0.59329236]
[1737208816079,0.68262451,104300.0,104290.0,0.59329236]
[1737208816276,0.78186532,104300.0,104290.0,0.59329236]
[1737208816818,0.095886,104290.0,104280.0,0.00089817]
[1737208817021,0.42673016,104290.0,104280.0,0.00089817]
[1737208817230,0.42750735,104270.0,104260.0,0.37984756]
[1737208817454,0.43262816,104270.0,104260.0,0.37984756]
[1737208817658,0.78777232,104270.0,104260.0,0.37984756]
[1737208817869,0.58883051,104270.0,104260.0,0.37984756]
[1737208818253,0.58883051,104270.0,104260.0,0.38034999]
[1737208818430,0.60811977,104270.0,104260.0,0.00050243]
[1737208818779,0.70814312,104270.0,104260.0,0.00050243]
[1737208818980,0.81326393,104270.0,104260.0,0.00050243]
[1737208819180,0.60811977,104270.0,104260.0,0.00050243]
[1737208819571,0.70811977,104270.0,104260.0,0.00050243]
[1737208819757,0.60811977,104270.0,104260.0,0.00050243]
[1737208819962,0.42703413,104270.0,104260.0,0.00032585]
[1737208820165,0.533045,104270.0,104260.0,0.00032585]
[1737208820363,0.52674816,104270.0,104260.0,0.00032585]
[1737208821313,0.50069978,104270.0,104260.0,0.00032585]
[1737208821522,0.60069978,104270.0,104260.0,0.00032585]
[1737208821703,0.42674816,104270.0,104260.0,0.00032585]
[1737208821907,0.52674816,104270.0,104260.0,0.00032585]
[1737208824460,0.42674816,104270.0,104260.0,0.00032585]
[1737208824723,0.52674816,104270.0,104260.0,0.00032585]
[1737208824945,0.22522678,104270.0,104260.0,0.00032585]
[1737208825382,0.1257,104270.0,104260.0,0.09623985]
[1737208825533,0.34138393,104290.0,104270.0,0.287712]
[1737208825733,0.21568393,104290.0,104280.0,0.095895]
[1737208825950,0.21539796,104290.0,104280.0,0.095895]
[1737208826142,0.21539796,104290.0,104280.0,0.3077017]
[1737208826341,0.21539796,104290.0,104280.0,0.40694251]
[1737208826544,0.0004278,104310.0,104290.0,0.09971403]
[1737208826779,0.0004278,104310.0,104300.0,0.20178035]
[1737208827123,0.0004278,104310.0,104300.0,0.095877]
[1737208827333,0.0004278,104310.0,104300.0,0.20178035]
[1737208827531,0.0004278,104310.0,104300.0,0.095877]
[1737208827937,0.00092963,104310.0,104300.0,0.20178035]
[1737208828530,0.00092963,104310.0,104300.0,0.095877]
[1737208828918,0.00092963,104310.0,104300.0,0.20178035]
[1737208829174,0.00092963,104310.0,104300.0,0.095877]
[1737208830497,0.10045641,104310.0,104290.0,0.095882]
[1737208830699,0.1455983,104310.0,104290.0,0.287653]
[1737208831231,0.2414663,104310.0,104280.0,0.479448]
[1737208831433,0.00028597,104300.0,104280.0,0.479448]
[1737208831871,0.00028597,104300.0,104290.0,0.095886]
[1737208832296,0.00028597,104300.0,104280.0,0.479448]
[1737208832651,0.09616497,104300.0,104280.0,0.287667]
[1737208832856,0.1665809,104300.0,104280.0,0.287678]
[1737208833052,0.45757771,104300.0,104270.0,0.479492]
[1737208833300,0.09617197,104290.0,104270.0,0.287692]
[1737208833512,0.00028597,104290.0,104270.0,0.479501]
[1737208833714,0.09617197,104290.0,104270.0,0.479501]
[1737208833911,0.19541278,104290.0,104260.0,0.38452859]
[1737208834067,0.09952678,104290.0,104270.0,0.287697]
[1737208834272,0.09952678,104290.0,104280.0,0.095895]
[1737208834468,0.09952678,104290.0,104270.0,0.479497]
[1737208834668,0.19541278,104290.0,104270.0,0.479497]
[1737208834899,0.28248386,104290.0,104270.0,0.287697]
[1737208835116,0.09952678,104290.0,104270.0,0.479497]
[1737208835319,0.00028597,104290.0,104270.0,0.3836]
[1737208835550,0.00028597,104290.0,104280.0,0.095895]
[1737208836886,0.31094897,104290.0,104270.0,0.095897]
[1737208837086,0.41018978,104290.0,104260.0,0.38453359]
[1737208837341,0.67363443,104290.0,104260.0,0.67225959]
[1737208837549,0.09618297,104280.0,104260.0,0.28862259]
[1737208837786,0.09618297,104280.0,104260.0,0.00089859]
[1737208837787,0.48311678,104280.0,104260.0,0.00089859]
[1737208838005,0.38721978,104280.0,104260.0,0.00089859]
[1737208838209,0.09618997,104270.0,104260.0,0.00089859]
[1737208838415,0.00028597,104270.0,104260.0,0.00089859]
[1737208839259,0.09618997,104270.0,104260.0,0.00089859]
[1737208839459,0.09618997,104270.0,104260.0,0.00104919]
[1737208839609,0.21843078,104270.0,104260.0,0.00104919]
[1737208839834,0.44152636,104270.0,104260.0,0.00104919]
[1737208840270,0.75034309,104270.0,104260.0,0.00104919]
[1737208840411,0.85034309,104270.0,104260.0,0.00104919]
[1737208841510,0.85630309,104270.0,104260.0,0.00104919]
[1737208841905,0.75972154,104270.0,104260.0,0.00104919]
[1737208842157,0.60090481,104270.0,104260.0,0.00104919]
[1737208842772,0.24932678,104270.0,104260.0,0.00104919]
[1737208842974,0.24904081,104270.0,104260.0,0.00104919]
[1737208843234,0.34494481,104270.0,104260.0,0.00104919]
[1737208843434,0.24904081,104270.0,104260.0,0.00104919]
[1737208843700,0.34494481,104270.0,104260.0,0.00104919]
[1737208844052,0.00028597,104280.0,104260.0,0.19286719]
[1737208844277,0.00028597,104270.0,104260.0,0.28877619]
[1737208844481,0.09952678,104280.0,104260.0,0.48059219]
[1737208844694,0.09924081,104280.0,104260.0,0.48059219]
[1737208844841,0.09952678,104280.0,104260.0,0.48059219]
[1737208845040,0.09952678,104280.0,104260.0,0.09695819]
[1737208845041,0.24206146,104280.0,104260.0,0.09695819]
[1737208845746,0.43385246,104280.0,104260.0,0.00104919]
[1737208846118,0.24206146,104280.0,104260.0,0.09696219]
[1737208846356,0.02328597,104270.0,104260.0,0.00104919]
[1737208846556,0.21843078,104270.0,104260.0,0.00104919]
[1737208846711,0.37696154,104270.0,104260.0,0.00104919]
[1737208846921,0.21814481,104270.0,104260.0,0.00104919]
[1737208847353,0.29934481,104270.0,104260.0,0.00104919]
[1737208848012,0.50686154,104270.0,104260.0,0.00104919]
[1737208848728,0.34708576,104270.0,104260.0,0.00104919]
[1737208851522,0.60907175,104270.0,104260.0,0.00104919]
[1737208851693,0.50304576,104270.0,104260.0,0.00104919]
[1737208852473,0.60907175,104270.0,104260.0,0.00104919]
[1737208853045,0.40714176,104270.0,104260.0,0.00104919]
[1737208853237,0.20844176,104270.0,104260.0,0.00104919]
[1737208853450,0.30434576,104270.0,104260.0,0.00104919]
[1737208853575,0.20844176,104270.0,104260.0,0.00104919]
[1737208853971,0.29838576,104270.0,104260.0,0.00104919]
[1737208854145,0.20248176,104270.0,104260.0,0.00104919]
[1737208854299,0.29838576,104270.0,104260.0,0.00104919]
[1737208854734,0.39838576,104270.0,104260.0,0.00104919]
[1737208855857,0.50441175,104270.0,104260.0,0.00104919]
[1737208858578,0.65441175,104270.0,104260.0,0.00104919]
[1737208860993,0.67313328,104270.0,104260.0,0.00104919]
[1737208863789,0.57313328,104270.0,104260.0,0.00104919]
[1737208864423,0.62133328,104270.0,104260.0,0.00104919]
[1737208865476,0.83673124,104270.0,104260.0,0.00104919]
[1737208865686,1.04199804,104270.0,104260.0,0.00104919]
[1737208865853,0.91275926,104270.0,104260.0,0.00104919]
[1737208866434,0.60365799,104240.0,104230.0,0.60602472]
[1737208866644,0.7089788,104240.0,104230.0,0.60602472]
[1737208868685,0.9089788,104240.0,104230.0,0.60602472]
[1737208868887,1.02741346,104240.0,104230.0,0.60602472]
[1737208869668,1.02741346,104240.0,104230.0,0.60593634]
[1737208870452,1.0350158,104240.0,104230.0,0.60593634]
[1737208871725,1.0350158,104240.0,104230.0,0.60584812]
[1737208872464,1.14104179,104240.0,104230.0,0.60584812]
[1737208872837,0.84104179,104240.0,104230.0,0.58666012]
[1737208873039,0.84104179,104240.0,104230.0,0.14418635]
[1737208873266,0.84104179,104240.0,104230.0,0.07762151]
[1737208873467,0.84104179,104240.0,104230.0,0.06692017]
[1737208873690,0.83496179,104240.0,104230.0,0.06692017]
[1737208874074,0.62898981,104240.0,104230.0,0.06692017]
[1737208874288,0.84104179,104240.0,104230.0,0.06692017]
[1737208874529,0.09595,104220.0,104210.0,0.00089565]
[1737208874741,0.68792401,104220.0,104210.0,0.00089565]
[1737208875361,0.98792401,104220.0,104210.0,0.00089565]
[1737208875725,0.98792401,104220.0,104210.0,0.0012215]
[1737208876124,0.68792401,104220.0,104210.0,0.0012215]
[1737208877235,0.69530425,104220.0,104210.0,0.0012215]
[1737208877664,0.70138425,104220.0,104210.0,0.0012215]
[1737208878156,0.72055628,104220.0,104210.0,0.0012215]
[1737208879030,0.55518188,104220.0,104210.0,0.0012215]
[1737208879236,0.39910188,104220.0,104210.0,0.0012215]
[1737208879444,0.40518188,104220.0,104210.0,0.0012215]
[1737208879602,0.191831,104260.0,104210.0,0.0012215]
[1737208879603,1e-08,104270.0,104260.0,0.1]
[1737208879778,1.1e-07,104280.0,104270.0,0.095904]
[1737208880000,0.0012848,104310.0,104290.0,0.1]
[1737208880212,0.0012848,104310.0,104300.0,0.1902358]
[1737208880595,0.0012848,104310.0,104300.0,0.38947661]
[1737208880816,0.00178672,104310.0,104300.0,0.53947661]
[1737208881019,0.41556064,104310.0,104300.0,0.53947661]
[1737208881241,0.41556064,104310.0,104300.0,0.571766]
[1737208881242,0.36556064,104310.0,104300.0,0.571766]